[Event "Titled Tuesday Blitz June 28 Late 2022"]
[White "Colivet Gamboa, Julio Cesar"]
[Black "Mendez Fortes, Eduardo Jesus"]
[WhiteFideId "3949583"]
[BlackFideId "3502376"]
[WhiteElo "1743"]
[BlackElo "2321"]
[Result "1/2-1/2"]
[Round "06"]
[TimeControl "180+1"]
[Date "2022.06.29"]
[WhiteClock "0:00:13"]
[BlackClock "0:00:20"]

1. c4 {[%clk 0:02:23]}  Nf6 {[%clk 0:02:57]} 2. Nc3 {[%clk 0:02:23]}  e6 {[%clk 0:02:55]} 3. e4 {[%clk 0:02:22]}  d5 {[%clk 0:02:56]} 4. e5 {[%clk 0:02:22]}  d4 {[%clk 0:02:56]} 5. exf6 {[%clk 0:02:22]}  dxc3 {[%clk 0:02:57]} 6. bxc3 {[%clk 0:02:22]}  Qxf6 {[%clk 0:02:57]} 7. Nf3 {[%clk 0:02:23]}  b6 {[%clk 0:02:58]} 8. d4 {[%clk 0:02:23]}  Bb7 {[%clk 0:02:58]} 9. Be2 {[%clk 0:02:23]}  Bd6 {[%clk 0:02:58]} 10. O-O {[%clk 0:02:24]}  O-O {[%clk 0:02:58]} 11. Be3 {[%clk 0:02:23]}  h6 {[%clk 0:02:58]} 12. Qc2 {[%clk 0:02:23]}  Nd7 {[%clk 0:02:57]} 13. Rab1 {[%clk 0:02:20]}  Bc6 {[%clk 0:02:52]} 14. Rfd1 {[%clk 0:02:16]}  e5 {[%clk 0:02:50]} 15. dxe5 {[%clk 0:02:08]}  Nxe5 {[%clk 0:02:50]} 16. Nxe5 {[%clk 0:02:06]}  Qxe5 {[%clk 0:02:44]} 17. g3 {[%clk 0:02:02]}  Be4 {[%clk 0:02:39]} 18. Bd3 {[%clk 0:02:00]}  Bb7 {[%clk 0:02:38]} 19. Bf4 {[%clk 0:01:55]}  Qh5 {[%clk 0:02:33]} 20. Be4 {[%clk 0:01:40]}  Bxe4 {[%clk 0:02:31]} 21. Qxe4 {[%clk 0:01:41]}  Bxf4 {[%clk 0:02:29]} 22. Qxf4 {[%clk 0:01:42]}  Qc5 {[%clk 0:02:28]} 23. Rd7 {[%clk 0:01:39]}  Qc6 {[%clk 0:02:24]} 24. Rxc7 {[%clk 0:01:36]}  Qa4 {[%clk 0:01:45]} 25. Re1 {[%clk 0:01:27]}  Rac8 {[%clk 0:01:41]} 26. Rb7 {[%clk 0:01:16]}  Rxc4 {[%clk 0:01:39]} 27. Qd6 {[%clk 0:01:14]}  Qc6 {[%clk 0:01:33]} 28. Qxc6 {[%clk 0:00:37]}  Rxc6 {[%clk 0:01:32]} 29. Rxa7 {[%clk 0:00:38]}  Rxc3 {[%clk 0:01:32]} 30. Rb7 {[%clk 0:00:37]}  Ra3 {[%clk 0:01:28]} 31. Re2 {[%clk 0:00:36]}  Ra6 {[%clk 0:01:26]} 32. Rb2 {[%clk 0:00:36]}  Rfa8 {[%clk 0:01:26]} 33. R2xb6 {[%clk 0:00:34]}  Rxb6 {[%clk 0:01:27]} 34. Rxb6 {[%clk 0:00:33]}  Rxa2 {[%clk 0:01:27]} 35. Kg2 {[%clk 0:00:33]}  g6 {[%clk 0:01:27]} 36. Rb7 {[%clk 0:00:33]}  Kg7 {[%clk 0:01:27]} 37. h4 {[%clk 0:00:32]}  Ra4 {[%clk 0:01:28]} 38. Rb6 {[%clk 0:00:32]}  Rc4 {[%clk 0:01:25]} 39. Rd6 {[%clk 0:00:32]}  h5 {[%clk 0:01:25]} 40. Rb6 {[%clk 0:00:32]}  Kf8 {[%clk 0:01:26]} 41. Rb7 {[%clk 0:00:31]}  Rc6 {[%clk 0:01:24]} 42. Rd7 {[%clk 0:00:31]}  Kg7 {[%clk 0:01:24]} 43. Rb7 {[%clk 0:00:31]}  Rf6 {[%clk 0:01:25]} 44. Rc7 {[%clk 0:00:30]}  Re6 {[%clk 0:01:25]} 45. Rd7 {[%clk 0:00:30]}  Kf6 {[%clk 0:01:26]} 46. Rc7 {[%clk 0:00:29]}  Rd6 {[%clk 0:01:25]} 47. Rc5 {[%clk 0:00:29]}  Ke6 {[%clk 0:01:26]} 48. Rc7 {[%clk 0:00:29]}  f6 {[%clk 0:01:26]} 49. Rg7 {[%clk 0:00:29]}  Kf5 {[%clk 0:01:26]} 50. Rb7 {[%clk 0:00:27]}  Rd5 {[%clk 0:01:24]} 51. Rb6 {[%clk 0:00:26]}  Rc5 {[%clk 0:01:24]} 52. Rd6 {[%clk 0:00:26]}  Ke5 {[%clk 0:01:22]} 53. Rb6 {[%clk 0:00:26]}  Kf5 {[%clk 0:01:22]} 54. Rd6 {[%clk 0:00:26]}  g5 {[%clk 0:01:20]} 55. hxg5 {[%clk 0:00:25]}  fxg5 {[%clk 0:01:20]} 56. Rd4 {[%clk 0:00:25]}  Re5 {[%clk 0:01:19]} 57. f4 {[%clk 0:00:21]}  gxf4 {[%clk 0:00:29]} 58. Rxf4+ {[%clk 0:00:21]}  Kg5 {[%clk 0:00:28]} 59. Rd4 {[%clk 0:00:19]}  Rc5 {[%clk 0:00:28]} 60. Kh3 {[%clk 0:00:19]}  Rb5 {[%clk 0:00:27]} 61. Rc4 {[%clk 0:00:19]}  Rf5 {[%clk 0:00:22]} 62. Rd4 {[%clk 0:00:20]}  Kf6 {[%clk 0:00:22]} 63. Rd6+ {[%clk 0:00:19]}  Ke5 {[%clk 0:00:22]} 64. Ra6 {[%clk 0:00:20]}  Ke4 {[%clk 0:00:22]} 65. Ra4+ {[%clk 0:00:19]}  Kd3 {[%clk 0:00:22]} 66. Ra3+ {[%clk 0:00:19]}  Ke2 {[%clk 0:00:22]} 67. Kh4 {[%clk 0:00:17]}  Kf2 {[%clk 0:00:22]} 68. Ra2+ {[%clk 0:00:15]}  Kg1 {[%clk 0:00:22]} 69. Ra4 {[%clk 0:00:12]}  Kg2 {[%clk 0:00:20]} 70. Ra2+ {[%clk 0:00:11]}  Kg1 {[%clk 0:00:20]} 71. Re2 {[%clk 0:00:12]}  Kh1 {[%clk 0:00:20]} 72. Rd2 {[%clk 0:00:12]}  Kg1 {[%clk 0:00:20]} 73. Rc2 {[%clk 0:00:12]}  Kh1 {[%clk 0:00:20]} 74. Rd2 {[%clk 0:00:12]}  Kg1 {[%clk 0:00:21]} 75. Kh3 {[%clk 0:00:13]}  Kf1 {[%clk 0:00:20]} 76. Kh4 {[%clk 0:00:13]}  Kg1 {[%clk 0:00:20]} 1/2-1/2


[Site "https://www.chess.com"]

[Event "Titled Tuesday Blitz June 28 Late 2022"]
[White "Colpe, Malte"]
[Black "Tatarinov, Dmitry"]
[WhiteFideId "24623075"]
[BlackFideId "24160067"]
[WhiteElo "2515"]
[BlackElo "2700"]
[Result "0-1"]
[Round "06"]
[TimeControl "180+1"]
[Date "2022.06.29"]
[WhiteClock "0:00:04"]
[BlackClock "0:00:24"]

1. e4 {[%clk 0:03:00]}  e5 {[%clk 0:02:58]} 2. Nf3 {[%clk 0:03:00]}  Nc6 {[%clk 0:02:57]} 3. Bc4 {[%clk 0:03:01]}  Bc5 {[%clk 0:02:56]} 4. c3 {[%clk 0:03:01]}  Nf6 {[%clk 0:02:55]} 5. d4 {[%clk 0:03:01]}  exd4 {[%clk 0:02:55]} 6. e5 {[%clk 0:03:02]}  d6 {[%clk 0:02:51]} 7. exf6 {[%clk 0:02:59]}  Qxf6 {[%clk 0:02:51]} 8. cxd4 {[%clk 0:02:52]}  Nxd4 {[%clk 0:02:51]} 9. Nxd4 {[%clk 0:02:51]}  Bxd4 {[%clk 0:02:52]} 10. O-O {[%clk 0:02:48]}  O-O {[%clk 0:02:52]} 11. Qc2 {[%clk 0:02:19]}  c6 {[%clk 0:02:49]} 12. Nc3 {[%clk 0:02:17]}  d5 {[%clk 0:02:49]} 13. Bd3 {[%clk 0:02:18]}  g6 {[%clk 0:02:47]} 14. Ne2 {[%clk 0:02:16]}  Be5 {[%clk 0:02:46]} 15. f4 {[%clk 0:02:14]}  Bc7 {[%clk 0:02:43]} 16. Be3 {[%clk 0:02:04]}  Re8 {[%clk 0:02:39]} 17. Bd4 {[%clk 0:02:00]}  Bb6 {[%clk 0:02:06]} 18. Bxb6 {[%clk 0:01:45]}  axb6 {[%clk 0:02:07]} 19. f5 {[%clk 0:01:44]}  g5 {[%clk 0:02:04]} 20. Ng3 {[%clk 0:01:42]}  Bd7 {[%clk 0:01:58]} 21. Qd2 {[%clk 0:01:34]}  Qd4+ {[%clk 0:01:55]} 22. Kh1 {[%clk 0:01:31]}  f6 {[%clk 0:01:55]} 23. a3 {[%clk 0:01:18]}  Re3 {[%clk 0:01:51]} 24. Rad1 {[%clk 0:01:16]}  Rae8 {[%clk 0:01:50]} 25. Qf2 {[%clk 0:01:07]}  Qe5 {[%clk 0:01:45]} 26. b4 {[%clk 0:01:03]}  Re7 {[%clk 0:01:44]} 27. a4 {[%clk 0:00:59]}  Be8 {[%clk 0:01:42]} 28. Be2 {[%clk 0:00:45]}  Rxe2 {[%clk 0:01:33]} 29. Nxe2 {[%clk 0:00:46]}  Qxe2 {[%clk 0:01:33]} 30. Qxb6 {[%clk 0:00:45]}  Bf7 {[%clk 0:01:29]} 31. a5 {[%clk 0:00:42]}  Kg7 {[%clk 0:01:26]} 32. Qd8 {[%clk 0:00:35]}  Re8 {[%clk 0:01:16]} 33. Qd6 {[%clk 0:00:35]}  Qb5 {[%clk 0:01:15]} 34. h4 {[%clk 0:00:29]}  h6 {[%clk 0:01:13]} 35. Rfe1 {[%clk 0:00:24]}  Re2 {[%clk 0:01:11]} 36. Qc5 {[%clk 0:00:18]}  Qa6 {[%clk 0:01:07]} 37. Kh2 {[%clk 0:00:13]}  Rxe1 {[%clk 0:01:04]} 38. Rxe1 {[%clk 0:00:14]}  Qd3 {[%clk 0:01:04]} 39. hxg5 {[%clk 0:00:11]}  hxg5 {[%clk 0:01:05]} 40. Qf2 {[%clk 0:00:10]}  d4 {[%clk 0:01:02]} 41. Re2 {[%clk 0:00:09]}  Bd5 {[%clk 0:00:58]} 42. Rd2 {[%clk 0:00:10]}  Qe4 {[%clk 0:00:57]} 43. Rxd4 {[%clk 0:00:10]}  Qe5+ {[%clk 0:00:57]} 44. Kg1 {[%clk 0:00:09]}  Kf7 {[%clk 0:00:53]} 45. Rd2 {[%clk 0:00:09]}  Qa1+ {[%clk 0:00:52]} 46. Kh2 {[%clk 0:00:09]}  Qe5+ {[%clk 0:00:53]} 47. Kg1 {[%clk 0:00:09]}  Qa1+ {[%clk 0:00:53]} 48. Kh2 {[%clk 0:00:08]}  Qc3 {[%clk 0:00:53]} 49. Qd4 {[%clk 0:00:07]}  Qb3 {[%clk 0:00:47]} 50. Qf2 {[%clk 0:00:06]}  Qxb4 {[%clk 0:00:45]} 51. Rb2 {[%clk 0:00:07]}  Qe7 {[%clk 0:00:43]} 52. Qg3 {[%clk 0:00:05]}  c5 {[%clk 0:00:41]} 53. Qb8 {[%clk 0:00:04]}  c4 {[%clk 0:00:35]} 54. Rb6 {[%clk 0:00:04]}  c3 {[%clk 0:00:33]} 55. Qc8 {[%clk 0:00:05]}  Bc6 {[%clk 0:00:30]} 56. Rxc6 {[%clk 0:00:04]}  bxc6 {[%clk 0:00:31]} 57. Qxc6 {[%clk 0:00:05]}  Qe5+ {[%clk 0:00:31]} 58. Kg1 {[%clk 0:00:06]}  g4 {[%clk 0:00:27]} 59. a6 {[%clk 0:00:04]}  g3 {[%clk 0:00:28]} 60. Qd7+ {[%clk 0:00:05]}  Kg8 {[%clk 0:00:27]} 61. Qc8+ {[%clk 0:00:04]}  Kg7 {[%clk 0:00:28]} 62. Qd7+ {[%clk 0:00:05]}  Kh6 {[%clk 0:00:28]} 63. Qd1 {[%clk 0:00:04]}  Qe3+ {[%clk 0:00:27]} 64. Kh1 {[%clk 0:00:04]}  Kg7 {[%clk 0:00:27]} 65. Qg4+ {[%clk 0:00:04]}  Kf8 {[%clk 0:00:27]} 66. Qb4+ {[%clk 0:00:04]}  Kf7 {[%clk 0:00:26]} 67. Qc4+ {[%clk 0:00:04]}  Ke7 {[%clk 0:00:24]} 68. Qb4+ {[%clk 0:00:04]}  Kd7 {[%clk 0:00:25]} 69. Qc4 {[%clk 0:00:04]}  Qe1+ {[%clk 0:00:24]} 70. Qf1 {[%clk 0:00:04]}  Qxf1# {[%clk 0:00:24]} 0-1


[Site "https://www.chess.com"]

[Event "Titled Tuesday Blitz June 28 Late 2022"]
[White "Daeschler, Florian"]
[Black "Silva, Miguel Antonio Neto"]
[WhiteFideId "20678193"]
[BlackFideId "1911929"]
[WhiteElo "2221"]
[BlackElo "2204"]
[Result "1-0"]
[Round "06"]
[TimeControl "180+1"]
[Date "2022.06.29"]
[WhiteClock "0:00:33"]
[BlackClock "0:00:12"]

1. d4 {[%clk 0:02:15]}  Nf6 {[%clk 0:02:49]} 2. c4 {[%clk 0:02:14]}  e6 {[%clk 0:02:49]} 3. g3 {[%clk 0:02:14]}  c5 {[%clk 0:02:48]} 4. d5 {[%clk 0:02:13]}  exd5 {[%clk 0:02:49]} 5. cxd5 {[%clk 0:02:14]}  d6 {[%clk 0:02:49]} 6. Nc3 {[%clk 0:02:15]}  g6 {[%clk 0:02:49]} 7. Bg2 {[%clk 0:02:15]}  Bg7 {[%clk 0:02:50]} 8. Nf3 {[%clk 0:02:16]}  O-O {[%clk 0:02:50]} 9. O-O {[%clk 0:02:16]}  Re8 {[%clk 0:02:51]} 10. Re1 {[%clk 0:02:16]}  a6 {[%clk 0:02:52]} 11. a4 {[%clk 0:02:15]}  Ne4 {[%clk 0:02:48]} 12. Nxe4 {[%clk 0:02:12]}  Rxe4 {[%clk 0:02:49]} 13. Qc2 {[%clk 0:02:08]}  Bf5 {[%clk 0:02:34]} 14. Bh3 {[%clk 0:02:08]}  Rxa4 {[%clk 0:01:24]} 15. Qxa4 {[%clk 0:01:58]}  Bxh3 {[%clk 0:01:23]} 16. Bg5 {[%clk 0:01:52]}  Qd7 {[%clk 0:01:11]} 17. Qh4 {[%clk 0:01:41]}  Bg4 {[%clk 0:01:01]} 18. Bf6 {[%clk 0:01:36]}  h6 {[%clk 0:00:54]} 19. Bxg7 {[%clk 0:01:12]}  Kxg7 {[%clk 0:00:55]} 20. h3 {[%clk 0:01:02]}  Bxh3 {[%clk 0:00:51]} 21. Nh2 {[%clk 0:00:48]}  g5 {[%clk 0:00:48]} 22. Qc4 {[%clk 0:00:45]}  Bf5 {[%clk 0:00:36]} 23. e4 {[%clk 0:00:45]}  Bg6 {[%clk 0:00:36]} 24. e5 {[%clk 0:00:45]}  dxe5 {[%clk 0:00:36]} 25. Rxe5 {[%clk 0:00:44]}  Qd6 {[%clk 0:00:36]} 26. Rae1 {[%clk 0:00:43]}  Nd7 {[%clk 0:00:36]} 27. Re7 {[%clk 0:00:41]}  Rd8 {[%clk 0:00:31]} 28. Ng4 {[%clk 0:00:40]}  Nf6 {[%clk 0:00:20]} 29. Qc3 {[%clk 0:00:37]}  h5 {[%clk 0:00:15]} 30. R1e6 {[%clk 0:00:35]}  hxg4 {[%clk 0:00:12]} 31. Qxf6+ {[%clk 0:00:33]} 1-0


[Site "https://www.chess.com"]

[Event "Titled Tuesday Blitz June 28 Late 2022"]
[White "De Souza, Cristiano Gomes"]
[Black "Jaskolka, Tomasz"]
[WhiteFideId "2151758"]
[BlackFideId "1170791"]
[WhiteElo "2068"]
[BlackElo "2073"]
[Result "0-1"]
[Round "06"]
[TimeControl "180+1"]
[Date "2022.06.29"]
[WhiteClock "0:01:25"]
[BlackClock "0:01:40"]

1. d4 {[%clk 0:02:42]}  e6 {[%clk 0:02:59]} 2. c4 {[%clk 0:02:41]}  f5 {[%clk 0:02:56]} 3. g3 {[%clk 0:02:41]}  Nf6 {[%clk 0:02:56]} 4. Bg2 {[%clk 0:02:41]}  Be7 {[%clk 0:02:56]} 5. Nf3 {[%clk 0:02:41]}  O-O {[%clk 0:02:57]} 6. O-O {[%clk 0:02:41]}  d6 {[%clk 0:02:57]} 7. b3 {[%clk 0:02:42]}  Ne4 {[%clk 0:02:57]} 8. a4 {[%clk 0:02:42]}  Nd7 {[%clk 0:02:55]} 9. Ba3 {[%clk 0:02:42]}  Ndf6 {[%clk 0:02:56]} 10. Nfd2 {[%clk 0:02:42]}  Nxd2 {[%clk 0:02:48]} 11. Nxd2 {[%clk 0:02:42]}  e5 {[%clk 0:02:49]} 12. dxe5 {[%clk 0:02:40]}  dxe5 {[%clk 0:02:49]} 13. Nf3 {[%clk 0:02:37]}  Qxd1 {[%clk 0:02:47]} 14. Rfxd1 {[%clk 0:02:36]}  Bxa3 {[%clk 0:02:48]} 15. Rxa3 {[%clk 0:02:36]}  e4 {[%clk 0:02:47]} 16. Nd4 {[%clk 0:02:33]}  Bd7 {[%clk 0:02:40]} 17. Ra2 {[%clk 0:02:30]}  Rad8 {[%clk 0:02:40]} 18. Rad2 {[%clk 0:02:29]}  Bc8 {[%clk 0:02:25]} 19. h3 {[%clk 0:02:16]}  a6 {[%clk 0:02:20]} 20. Nc2 {[%clk 0:02:13]}  Rxd2 {[%clk 0:02:18]} 21. Rxd2 {[%clk 0:02:13]}  Kf7 {[%clk 0:02:14]} 22. Ne3 {[%clk 0:02:13]}  Ke7 {[%clk 0:02:12]} 23. f4 {[%clk 0:02:10]}  Rd8 {[%clk 0:02:08]} 24. Rxd8 {[%clk 0:02:09]}  Kxd8 {[%clk 0:02:09]} 25. Kf2 {[%clk 0:02:09]}  Ke7 {[%clk 0:02:08]} 26. Nc2 {[%clk 0:02:06]}  Kd6 {[%clk 0:02:07]} 27. b4 {[%clk 0:02:02]}  a5 {[%clk 0:01:53]} 28. c5+ {[%clk 0:02:00]}  Kc6 {[%clk 0:01:44]} 29. bxa5 {[%clk 0:01:46]}  Kxc5 {[%clk 0:01:44]} 30. Ke3 {[%clk 0:01:46]}  Bd7 {[%clk 0:01:39]} 31. Nd4 {[%clk 0:01:35]}  Nd5+ {[%clk 0:01:39]} 32. Kf2 {[%clk 0:01:25]}  Kxd4 {[%clk 0:01:40]} 0-1


[Site "https://www.chess.com"]

[Event "Titled Tuesday Blitz June 28 Late 2022"]
[White "Diaz Rosas, Julio Cesar"]
[Black "Meunier-Pion, Jean"]
[WhiteFideId "5105099"]
[BlackFideId "20685327"]
[WhiteElo "2674"]
[BlackElo "2479"]
[Result "0-1"]
[Round "06"]
[TimeControl "180+1"]
[Date "2022.06.29"]
[WhiteClock "0:00:05"]
[BlackClock "0:00:06"]

1. d4 {[%clk 0:03:00]}  d5 {[%clk 0:02:59]} 2. c4 {[%clk 0:03:01]}  c6 {[%clk 0:03:00]} 3. cxd5 {[%clk 0:03:00]}  cxd5 {[%clk 0:03:00]} 4. Bg5 {[%clk 0:03:01]}  Qb6 {[%clk 0:02:58]} 5. Nc3 {[%clk 0:02:54]}  Nc6 {[%clk 0:02:38]} 6. e4 {[%clk 0:02:48]}  e6 {[%clk 0:02:03]} 7. exd5 {[%clk 0:02:45]}  Qxb2 {[%clk 0:01:52]} 8. dxc6 {[%clk 0:02:21]}  Bb4 {[%clk 0:01:12]} 9. Bd2 {[%clk 0:02:20]}  Bxc3 {[%clk 0:01:10]} 10. Rc1 {[%clk 0:02:19]}  Bxd2+ {[%clk 0:00:51]} 11. Qxd2 {[%clk 0:02:20]}  Qxd2+ {[%clk 0:00:51]} 12. Kxd2 {[%clk 0:02:19]}  bxc6 {[%clk 0:00:52]} 13. Nf3 {[%clk 0:02:17]}  Bd7 {[%clk 0:00:49]} 14. Ne5 {[%clk 0:02:16]}  Nf6 {[%clk 0:00:49]} 15. Ba6 {[%clk 0:02:13]}  Rb8 {[%clk 0:00:47]} 16. Rb1 {[%clk 0:02:08]}  Ke7 {[%clk 0:00:46]} 17. Nd3 {[%clk 0:02:05]}  Rb6 {[%clk 0:00:41]} 18. Nc5 {[%clk 0:02:03]}  Rhb8 {[%clk 0:00:36]} 19. Bd3 {[%clk 0:02:03]}  h6 {[%clk 0:00:32]} 20. a4 {[%clk 0:02:02]}  Nd5 {[%clk 0:00:28]} 21. a5 {[%clk 0:01:58]}  Rxb1 {[%clk 0:00:17]} 22. Rxb1 {[%clk 0:01:59]}  Rxb1 {[%clk 0:00:17]} 23. Bxb1 {[%clk 0:01:57]}  Kd6 {[%clk 0:00:17]} 24. Ba2 {[%clk 0:01:47]}  f6 {[%clk 0:00:16]} 25. g3 {[%clk 0:01:41]}  Bc8 {[%clk 0:00:16]} 26. f4 {[%clk 0:01:35]}  e5 {[%clk 0:00:14]} 27. Ne4+ {[%clk 0:01:25]}  Ke6 {[%clk 0:00:15]} 28. fxe5 {[%clk 0:01:20]}  fxe5 {[%clk 0:00:15]} 29. Kd3 {[%clk 0:01:18]}  Ba6+ {[%clk 0:00:13]} 30. Kd2 {[%clk 0:01:17]}  Bc8 {[%clk 0:00:08]} 31. Bc4 {[%clk 0:01:12]}  exd4 {[%clk 0:00:07]} 32. Nc5+ {[%clk 0:01:05]}  Kd6 {[%clk 0:00:07]} 33. Ne4+ {[%clk 0:01:04]}  Ke5 {[%clk 0:00:08]} 34. Nc5 {[%clk 0:01:05]}  Ne3 {[%clk 0:00:08]} 35. Be2 {[%clk 0:00:53]}  Ng4 {[%clk 0:00:07]} 36. Bf3 {[%clk 0:00:47]}  Nxh2 {[%clk 0:00:05]} 37. Bg2 {[%clk 0:00:42]}  Ng4 {[%clk 0:00:05]} 38. a6 {[%clk 0:00:36]}  Nf6 {[%clk 0:00:05]} 39. Kd3 {[%clk 0:00:29]}  Bf5+ {[%clk 0:00:04]} 40. Kc4 {[%clk 0:00:28]}  Be4 {[%clk 0:00:03]} 41. Bf1 {[%clk 0:00:22]}  Bd5+ {[%clk 0:00:03]} 42. Kb4 {[%clk 0:00:20]}  Ne4 {[%clk 0:00:03]} 43. Nd3+ {[%clk 0:00:20]}  Kd6 {[%clk 0:00:03]} 44. Ka5 {[%clk 0:00:18]}  Nxg3 {[%clk 0:00:03]} 45. Bh3 {[%clk 0:00:18]}  Ne4 {[%clk 0:00:03]} 46. Nf4 {[%clk 0:00:16]}  Bf7 {[%clk 0:00:03]} 47. Bg2 {[%clk 0:00:14]}  Nd2 {[%clk 0:00:03]} 48. Ne2 {[%clk 0:00:12]}  Nc4+ {[%clk 0:00:03]} 49. Kb4 {[%clk 0:00:11]}  c5+ {[%clk 0:00:04]} 50. Kb5 {[%clk 0:00:11]}  Ne5 {[%clk 0:00:04]} 51. Bb7 {[%clk 0:00:07]}  Be8+ {[%clk 0:00:04]} 52. Ka5 {[%clk 0:00:06]}  Nc6+ {[%clk 0:00:04]} 53. Ka4 {[%clk 0:00:05]}  Nd8+ {[%clk 0:00:04]} 54. Kb3 {[%clk 0:00:04]}  Bc6 {[%clk 0:00:04]} 55. Kc4 {[%clk 0:00:03]}  Bxb7 {[%clk 0:00:04]} 56. axb7 {[%clk 0:00:04]}  Nxb7 {[%clk 0:00:05]} 57. Ng3 {[%clk 0:00:05]}  Na5+ {[%clk 0:00:05]} 58. Kb5 {[%clk 0:00:05]}  Nc6 {[%clk 0:00:06]} 59. Nf5+ {[%clk 0:00:06]}  Kd5 {[%clk 0:00:06]} 60. Nxg7 {[%clk 0:00:06]}  d3 {[%clk 0:00:06]} 61. Nf5 {[%clk 0:00:05]}  Nd4+ {[%clk 0:00:06]} 0-1


[Site "https://www.chess.com"]

[Event "Titled Tuesday Blitz June 28 Late 2022"]
[White "Dubov, Daniil"]
[Black "Przybylski, Wojciech"]
[WhiteFideId "24126055"]
[BlackFideId "1117599"]
[WhiteElo "2791"]
[BlackElo "2133"]
[Result "1-0"]
[Round "06"]
[TimeControl "180+1"]
[Date "2022.06.28"]
[WhiteClock "0:02:11"]
[BlackClock "0:00:28"]

1. d4 {[%clk 0:02:50]}  Nf6 {[%clk 0:02:58]} 2. Nf3 {[%clk 0:02:51]}  d5 {[%clk 0:02:52]} 3. c4 {[%clk 0:02:50]}  c6 {[%clk 0:02:52]} 4. Nc3 {[%clk 0:02:50]}  e6 {[%clk 0:02:52]} 5. Bg5 {[%clk 0:02:49]}  h6 {[%clk 0:02:52]} 6. Bxf6 {[%clk 0:02:49]}  Qxf6 {[%clk 0:02:53]} 7. e3 {[%clk 0:02:49]}  Nd7 {[%clk 0:02:53]} 8. Be2 {[%clk 0:02:49]}  g6 {[%clk 0:02:53]} 9. O-O {[%clk 0:02:48]}  Bg7 {[%clk 0:02:48]} 10. e4 {[%clk 0:02:48]}  dxe4 {[%clk 0:02:47]} 11. Nxe4 {[%clk 0:02:48]}  Qf4 {[%clk 0:02:46]} 12. Qc2 {[%clk 0:02:47]}  O-O {[%clk 0:02:39]} 13. c5 {[%clk 0:02:45]}  Qc7 {[%clk 0:02:35]} 14. Rad1 {[%clk 0:02:44]}  Nf6 {[%clk 0:02:30]} 15. Nd6 {[%clk 0:02:40]}  Rd8 {[%clk 0:02:23]} 16. Rfe1 {[%clk 0:02:39]}  Ne8 {[%clk 0:02:19]} 17. Nc4 {[%clk 0:02:37]}  b6 {[%clk 0:02:16]} 18. b4 {[%clk 0:02:36]}  Bb7 {[%clk 0:01:59]} 19. Nce5 {[%clk 0:02:31]}  a5 {[%clk 0:01:41]} 20. a3 {[%clk 0:02:28]}  axb4 {[%clk 0:01:41]} 21. axb4 {[%clk 0:02:29]}  bxc5 {[%clk 0:01:40]} 22. bxc5 {[%clk 0:02:29]}  Nf6 {[%clk 0:01:39]} 23. Ra1 {[%clk 0:02:26]}  Nd5 {[%clk 0:01:35]} 24. g3 {[%clk 0:02:25]}  Rxa1 {[%clk 0:01:28]} 25. Rxa1 {[%clk 0:02:25]}  Ra8 {[%clk 0:01:28]} 26. Rxa8+ {[%clk 0:02:22]}  Bxa8 {[%clk 0:01:28]} 27. Qa4 {[%clk 0:02:23]}  Qb7 {[%clk 0:01:24]} 28. Kg2 {[%clk 0:02:20]}  Nc3 {[%clk 0:01:22]} 29. Qc4 {[%clk 0:02:19]}  Nxe2 {[%clk 0:01:16]} 30. Qxe2 {[%clk 0:02:20]}  Qc7 {[%clk 0:01:16]} 31. Nc4 {[%clk 0:02:18]}  Bb7 {[%clk 0:01:15]} 32. Nd6 {[%clk 0:02:18]}  Bc8 {[%clk 0:01:14]} 33. Ne5 {[%clk 0:02:15]}  f6 {[%clk 0:00:33]} 34. Nxg6 {[%clk 0:02:14]}  e5 {[%clk 0:00:28]} 35. Nxc8 {[%clk 0:02:11]} 1-0


[Site "https://www.chess.com"]

[Event "Titled Tuesday Blitz June 28 Late 2022"]
[White "Fawole, John Oyeyemi"]
[Black "Sarkar, Justin"]
[WhiteFideId "8501319"]
[BlackFideId "2010011"]
[WhiteElo "2091"]
[BlackElo "2020"]
[Result "0-1"]
[Round "06"]
[TimeControl "180+1"]
[Date "2022.06.29"]
[WhiteClock "0:00:02"]
[BlackClock "0:00:02"]

1. d4 {[%clk 0:02:53]}  Nf6 {[%clk 0:02:58]} 2. c4 {[%clk 0:02:52]}  e6 {[%clk 0:02:58]} 3. Nf3 {[%clk 0:02:51]}  d5 {[%clk 0:02:55]} 4. g3 {[%clk 0:02:51]}  Be7 {[%clk 0:02:45]} 5. Bg2 {[%clk 0:02:49]}  O-O {[%clk 0:02:44]} 6. Nbd2 {[%clk 0:02:48]}  c6 {[%clk 0:02:41]} 7. O-O {[%clk 0:02:47]}  Nbd7 {[%clk 0:02:39]} 8. b3 {[%clk 0:02:47]}  b6 {[%clk 0:02:37]} 9. Bb2 {[%clk 0:02:45]}  Bb7 {[%clk 0:02:37]} 10. e3 {[%clk 0:02:44]}  Rc8 {[%clk 0:02:34]} 11. Re1 {[%clk 0:02:40]}  c5 {[%clk 0:02:30]} 12. cxd5 {[%clk 0:02:36]}  Nxd5 {[%clk 0:02:27]} 13. Qe2 {[%clk 0:02:35]}  a5 {[%clk 0:02:19]} 14. a3 {[%clk 0:02:27]}  Re8 {[%clk 0:02:14]} 15. Rac1 {[%clk 0:02:22]}  N5f6 {[%clk 0:02:08]} 16. Red1 {[%clk 0:02:14]}  Rc7 {[%clk 0:01:56]} 17. Nc4 {[%clk 0:02:10]}  Qa8 {[%clk 0:01:49]} 18. Nce5 {[%clk 0:01:55]}  Nxe5 {[%clk 0:01:36]} 19. dxe5 {[%clk 0:01:54]}  Ne4 {[%clk 0:01:36]} 20. Ne1 {[%clk 0:01:35]}  h6 {[%clk 0:01:22]} 21. h4 {[%clk 0:01:20]}  a4 {[%clk 0:01:14]} 22. b4 {[%clk 0:01:17]}  Rec8 {[%clk 0:01:05]} 23. bxc5 {[%clk 0:01:13]}  Nxc5 {[%clk 0:00:59]} 24. Qg4 {[%clk 0:01:06]}  Nb3 {[%clk 0:00:43]} 25. Rxc7 {[%clk 0:01:04]}  Rxc7 {[%clk 0:00:44]} 26. Rd6 {[%clk 0:00:37]}  Bxg2 {[%clk 0:00:29]} 27. Nxg2 {[%clk 0:00:36]}  Rc2 {[%clk 0:00:28]} 28. Bd4 {[%clk 0:00:29]}  Nxd4 {[%clk 0:00:24]} 29. Rxd4 {[%clk 0:00:25]}  b5 {[%clk 0:00:22]} 30. Rd7 {[%clk 0:00:21]}  Bxa3 {[%clk 0:00:18]} 31. Qf4 {[%clk 0:00:16]}  Qe8 {[%clk 0:00:15]} 32. Rb7 {[%clk 0:00:15]}  Rc1+ {[%clk 0:00:08]} 33. Kh2 {[%clk 0:00:14]}  Bf8 {[%clk 0:00:06]} 34. Qe4 {[%clk 0:00:09]}  a3 {[%clk 0:00:05]} 35. Ra7 {[%clk 0:00:09]}  b4 {[%clk 0:00:04]} 36. Ra8 {[%clk 0:00:08]}  Rc8 {[%clk 0:00:04]} 37. Ra7 {[%clk 0:00:05]}  Qd8 {[%clk 0:00:04]} 38. Nf4 {[%clk 0:00:05]}  Rc7 {[%clk 0:00:03]} 39. Ra8 {[%clk 0:00:04]}  Qd7 {[%clk 0:00:03]} 40. Rb8 {[%clk 0:00:03]}  Qc6 {[%clk 0:00:03]} 41. Qxc6 {[%clk 0:00:03]}  Rxc6 {[%clk 0:00:03]} 42. Ra8 {[%clk 0:00:02]}  b3 {[%clk 0:00:02]} 0-1


[Site "https://www.chess.com"]